[Event "Early-Titled-Tuesday-Blitz-February-06-2024"]
[Site "Chess.com"]
[Date "2024.02.06"]
[Round "5"]
[White "microbear"]
[Black "emeli_chess"]
[Result "1-0"]
[WhiteElo "2293"]
[BlackElo "2422"]
[TimeControl "180+1"]
[EndTime "8:54:37 PST"]
[Termination "microbear won by resignation"]

1. e4 {[%clk 0:02:53.5]} 1... c5 {[%clk 0:02:59.6]} 2. Nf3 {[%clk 0:02:52]} 2...
d6 {[%clk 0:02:59.6]} 3. d4 {[%clk 0:02:52]} 3... cxd4 {[%clk 0:03:00.5]} 4.
Nxd4 {[%clk 0:02:52.8]} 4... Nf6 {[%clk 0:03:00.5]} 5. Nc3 {[%clk 0:02:53.5]}
5... a6 {[%clk 0:03:00.8]} 6. h3 {[%clk 0:02:51]} 6... e6 {[%clk 0:03:00.1]} 7.
Be3 {[%clk 0:02:45.8]} 7... b5 {[%clk 0:02:56.5]} 8. a3 {[%clk 0:02:40.5]} 8...
Bb7 {[%clk 0:02:55.6]} 9. Bd3 {[%clk 0:02:39.8]} 9... Nbd7 {[%clk 0:02:51.3]}
10. O-O {[%clk 0:02:37.6]} 10... Nc5 {[%clk 0:02:50.7]} 11. f3 {[%clk
0:02:32.8]} 11... Be7 {[%clk 0:02:48.5]} 12. Nb3 {[%clk 0:02:17.7]} 12... Qc7
{[%clk 0:02:38.3]} 13. Nxc5 {[%clk 0:02:06.8]} 13... dxc5 {[%clk 0:02:38.2]} 14.
Qe1 {[%clk 0:01:58.1]} 14... O-O {[%clk 0:02:35.5]} 15. Rd1 {[%clk 0:01:47.1]}
15... b4 {[%clk 0:02:13.9]} 16. axb4 {[%clk 0:01:40.8]} 16... cxb4 {[%clk
0:02:13.7]} 17. Na4 {[%clk 0:01:36.8]} 17... Bc6 {[%clk 0:01:56.9]} 18. Nb6
{[%clk 0:01:29]} 18... Rab8 {[%clk 0:01:52.9]} 19. Qf2 {[%clk 0:01:25.5]} 19...
Bb5 {[%clk 0:01:35.3]} 20. Bxb5 {[%clk 0:01:19.2]} 20... axb5 {[%clk 0:01:35.1]}
21. Rd2 {[%clk 0:00:33.1]} 21... Rfd8 {[%clk 0:01:21]} 22. Rfd1 {[%clk
0:00:32.7]} 22... Rxd2 {[%clk 0:01:18.7]} 23. Rxd2 {[%clk 0:00:32.5]} 23... Bd8
{[%clk 0:01:12.3]} 24. g4 {[%clk 0:00:20.5]} 24... Rxb6 {[%clk 0:01:08]} 25.
Rxd8+ {[%clk 0:00:19.9]} 25... Qxd8 {[%clk 0:01:06.5]} 26. Bxb6 {[%clk
0:00:20.6]} 26... Qd1+ {[%clk 0:01:01.1]} 27. Kg2 {[%clk 0:00:21.1]} 27... h6
{[%clk 0:00:56.8]} 28. Bc5 {[%clk 0:00:18.1]} 28... b3 {[%clk 0:00:54.1]} 29.
cxb3 {[%clk 0:00:19]} 29... Qxb3 {[%clk 0:00:53.6]} 30. Bd4 {[%clk 0:00:19.3]}
30... Nd7 {[%clk 0:00:51.5]} 31. Qe3 {[%clk 0:00:17]} 31... e5 {[%clk
0:00:50.8]} 32. Qxb3 {[%clk 0:00:16.9]} 32... exd4 {[%clk 0:00:48.6]} 33. Qxb5
{[%clk 0:00:17.1]} 1-0

[Event "Early-Titled-Tuesday-Blitz-February-06-2024"]
[Site "Chess.com"]
[Date "2024.02.06"]
[Round "5"]
[White "InitiatingASC"]
[Black "WiktoriaPOL"]
[Result "1-0"]
[WhiteElo "2421"]
[BlackElo "2262"]
[TimeControl "180+1"]
[EndTime "8:54:37 PST"]
[Termination "InitiatingASC won on time"]

1. e4 {[%clk 0:02:49]} 1... c5 {[%clk 0:02:59.3]} 2. Nf3 {[%clk 0:02:48.9]} 2...
d6 {[%clk 0:02:59.3]} 3. Bb5+ {[%clk 0:02:48.9]} 3... Nd7 {[%clk 0:02:58.9]} 4.
O-O {[%clk 0:02:48.3]} 4... Nf6 {[%clk 0:02:58.5]} 5. Re1 {[%clk 0:02:48.6]}
5... a6 {[%clk 0:02:58.2]} 6. Bf1 {[%clk 0:02:48.1]} 6... e5 {[%clk 0:02:56.8]}
7. a4 {[%clk 0:02:46.3]} 7... g6 {[%clk 0:02:52.9]} 8. Na3 {[%clk 0:02:45.6]}
8... Bg7 {[%clk 0:02:51.2]} 9. Nc4 {[%clk 0:02:45.7]} 9... Qc7 {[%clk
0:02:48.6]} 10. a5 {[%clk 0:02:45.4]} 10... O-O {[%clk 0:02:47.6]} 11. d3 {[%clk
0:02:36.4]} 11... d5 {[%clk 0:02:36.9]} 12. exd5 {[%clk 0:02:31.6]} 12... Nxd5
{[%clk 0:02:36.6]} 13. g3 {[%clk 0:02:24.9]} 13... b5 {[%clk 0:02:30.1]} 14.
axb6 {[%clk 0:02:23.8]} 14... N5xb6 {[%clk 0:02:25.7]} 15. Nxb6 {[%clk
0:02:08.4]} 15... Nxb6 {[%clk 0:02:26.6]} 16. Bg2 {[%clk 0:02:08.3]} 16... Bb7
{[%clk 0:02:25.2]} 17. Bd2 {[%clk 0:01:57.5]} 17... Rad8 {[%clk 0:02:09.3]} 18.
Ba5 {[%clk 0:01:56.2]} 18... e4 {[%clk 0:02:02.7]} 19. Nd2 {[%clk 0:01:45.9]}
19... exd3 {[%clk 0:01:30.2]} 20. Nc4 {[%clk 0:01:43.8]} 20... Bxg2 {[%clk
0:01:11.6]} 21. Bxb6 {[%clk 0:01:42.7]} 21... Qc6 {[%clk 0:01:02.5]} 22. Bxd8
{[%clk 0:01:39.9]} 22... Rxd8 {[%clk 0:00:55]} 23. cxd3 {[%clk 0:01:40.1]} 23...
Bh1 {[%clk 0:00:47.3]} 24. Ne3 {[%clk 0:01:19.3]} 24... Bxb2 {[%clk 0:00:38.5]}
25. Rxa6 {[%clk 0:01:16.3]} 25... Qxa6 {[%clk 0:00:33.9]} 26. Kxh1 {[%clk
0:01:16.1]} 26... Qxd3 {[%clk 0:00:27.8]} 27. Qg4 {[%clk 0:01:04.7]} 27... h5
{[%clk 0:00:22]} 28. Qf4 {[%clk 0:00:58.3]} 28... Rd4 {[%clk 0:00:17.8]} 29.
Qb8+ {[%clk 0:00:56.9]} 29... Kh7 {[%clk 0:00:15.6]} 30. Qxb2 {[%clk 0:00:57.4]}
30... Qe4+ {[%clk 0:00:13.2]} 31. Kg1 {[%clk 0:00:56.4]} 31... c4 {[%clk
0:00:07.8]} 32. Nc2 {[%clk 0:00:53.5]} 1-0

[Event "Early-Titled-Tuesday-Blitz-February-06-2024"]
[Site "Chess.com"]
[Date "2024.02.06"]
[Round "5"]
[White "ccccvhhhj"]
[Black "GlavkonVVS"]
[Result "0-1"]
[WhiteElo "2444"]
[BlackElo "2613"]
[TimeControl "180+1"]
[EndTime "8:54:39 PST"]
[Termination "GlavkonVVS won by resignation"]

1. d4 {[%clk 0:03:00.9]} 1... Nf6 {[%clk 0:02:40.7]} 2. Bg5 {[%clk 0:03:00.4]}
2... c5 {[%clk 0:02:39.8]} 3. d5 {[%clk 0:03:00.3]} 3... Qb6 {[%clk 0:02:39.2]}
4. Nc3 {[%clk 0:02:59.7]} 4... Qxb2 {[%clk 0:02:39.2]} 5. Bd2 {[%clk 0:02:59.9]}
5... Qb6 {[%clk 0:02:39.8]} 6. e4 {[%clk 0:02:59.1]} 6... d6 {[%clk 0:02:40]} 7.
f4 {[%clk 0:02:56.7]} 7... g6 {[%clk 0:02:39.9]} 8. Nf3 {[%clk 0:02:56.1]} 8...
Bg7 {[%clk 0:02:40]} 9. Rb1 {[%clk 0:02:43.1]} 9... Qd8 {[%clk 0:02:39.9]} 10.
Bb5+ {[%clk 0:02:16.1]} 10... Nfd7 {[%clk 0:02:39.5]} 11. e5 {[%clk 0:02:09.8]}
11... O-O {[%clk 0:02:38.5]} 12. O-O {[%clk 0:01:43.3]} 12... dxe5 {[%clk
0:02:37.6]} 13. fxe5 {[%clk 0:01:07.3]} 13... Nxe5 {[%clk 0:02:21.7]} 14. Bf4
{[%clk 0:00:55.5]} 14... Nbd7 {[%clk 0:02:18.4]} 15. Ne4 {[%clk 0:00:48.4]}
15... Nxf3+ {[%clk 0:02:12.4]} 16. Qxf3 {[%clk 0:00:47.9]} 16... a6 {[%clk
0:02:09.3]} 17. Bd3 {[%clk 0:00:44.7]} 17... b5 {[%clk 0:02:03.6]} 18. d6 {[%clk
0:00:21.7]} 18... Bb7 {[%clk 0:01:41.1]} 19. dxe7 {[%clk 0:00:20.5]} 19... Qxe7
{[%clk 0:01:40.2]} 20. Bd6 {[%clk 0:00:17.3]} 20... Qxd6 {[%clk 0:01:40.2]} 21.
Nxd6 {[%clk 0:00:17.6]} 21... Bxf3 {[%clk 0:01:40.4]} 22. Rxf3 {[%clk
0:00:16.8]} 22... c4 {[%clk 0:01:40.7]} 23. Be4 {[%clk 0:00:16.4]} 23... Ne5
{[%clk 0:01:37.5]} 24. Bxa8 {[%clk 0:00:13.1]} 24... Rxa8 {[%clk 0:01:37.4]} 25.
Re3 {[%clk 0:00:11.6]} 25... Rd8 {[%clk 0:01:36.9]} 26. Rd1 {[%clk 0:00:10.3]}
26... Ng4 {[%clk 0:01:28]} 27. Ree1 {[%clk 0:00:09.3]} 27... Be5 {[%clk
0:01:27.1]} 28. Ne4 {[%clk 0:00:08.4]} 28... Bxh2+ {[%clk 0:01:26.5]} 29. Kf1
{[%clk 0:00:08.6]} 29... Rxd1 {[%clk 0:01:26.7]} 30. Rxd1 {[%clk 0:00:09.5]}
30... Ne3+ {[%clk 0:01:25.9]} 31. Ke2 {[%clk 0:00:10.2]} 31... Nxd1 {[%clk
0:01:26.1]} 32. Kxd1 {[%clk 0:00:11.1]} 32... Kf8 {[%clk 0:01:24.6]} 33. Nf6
{[%clk 0:00:10.2]} 33... h5 {[%clk 0:01:22.2]} 34. Ke2 {[%clk 0:00:08.4]} 34...
Ke7 {[%clk 0:01:22.1]} 35. Nd5+ {[%clk 0:00:08.4]} 35... Kd6 {[%clk 0:01:22.3]}
36. Ne3 {[%clk 0:00:09]} 36... Bf4 {[%clk 0:01:22.1]} 37. Nd1 {[%clk 0:00:08.9]}
37... Kc5 {[%clk 0:01:22.1]} 38. Kf3 {[%clk 0:00:09.3]} 38... Be5 {[%clk
0:01:21.7]} 39. Ke4 {[%clk 0:00:09.6]} 39... Bg7 {[%clk 0:01:20.4]} 40. Ne3
{[%clk 0:00:08.7]} 40... f5+ {[%clk 0:01:20.7]} 41. Kf4 {[%clk 0:00:08.6]} 41...
Bh6+ {[%clk 0:01:20.6]} 0-1

[Event "Early-Titled-Tuesday-Blitz-February-06-2024"]
[Site "Chess.com"]
[Date "2024.02.06"]
[Round "5"]
[White "Flameboard08"]
[Black "CSB7"]
[Result "1-0"]
[WhiteElo "2575"]
[BlackElo "2737"]
[TimeControl "180+1"]
[EndTime "8:54:40 PST"]
[Termination "Flameboard08 won by resignation"]

1. f4 {[%clk 0:03:00.9]} 1... Nh6 {[%clk 0:02:50.8]} 2. Nf3 {[%clk 0:02:58.7]}
2... g6 {[%clk 0:02:48.7]} 3. g3 {[%clk 0:02:58.1]} 3... Bg7 {[%clk 0:02:48.7]}
4. Bg2 {[%clk 0:02:57.9]} 4... d5 {[%clk 0:02:49]} 5. d3 {[%clk 0:02:57.2]} 5...
O-O {[%clk 0:02:47.9]} 6. O-O {[%clk 0:02:56]} 6... d4 {[%clk 0:02:47]} 7. Nbd2
{[%clk 0:02:51]} 7... Nc6 {[%clk 0:02:28.6]} 8. Nb3 {[%clk 0:02:48.1]} 8... Nf5
{[%clk 0:02:24.6]} 9. Bd2 {[%clk 0:02:37]} 9... e5 {[%clk 0:02:01.4]} 10. fxe5
{[%clk 0:02:27.4]} 10... Nxe5 {[%clk 0:02:02.3]} 11. Nxe5 {[%clk 0:02:27.7]}
11... Bxe5 {[%clk 0:02:03.2]} 12. Nc5 {[%clk 0:02:16.6]} 12... c6 {[%clk
0:02:00.7]} 13. Ne4 {[%clk 0:02:06]} 13... Ne3 {[%clk 0:01:53.1]} 14. Bxe3
{[%clk 0:02:05]} 14... dxe3 {[%clk 0:01:54]} 15. c3 {[%clk 0:01:58.7]} 15... f5
{[%clk 0:01:48.9]} 16. Nc5 {[%clk 0:01:57.9]} 16... f4 {[%clk 0:01:11.7]} 17.
Qb3+ {[%clk 0:01:39]} 17... Kh8 {[%clk 0:01:09.4]} 18. Ne6 {[%clk 0:01:38.8]}
18... Bxe6 {[%clk 0:01:02.9]} 19. Qxe6 {[%clk 0:01:39.7]} 19... Re8 {[%clk
0:00:35.1]} 20. Qg4 {[%clk 0:01:32.4]} 20... fxg3 {[%clk 0:00:35.1]} 21. hxg3
{[%clk 0:01:32.3]} 21... Qc7 {[%clk 0:00:35.7]} 22. Rf3 {[%clk 0:01:31.3]} 22...
Re7 {[%clk 0:00:25.6]} 23. Raf1 {[%clk 0:01:26.5]} 23... Bg7 {[%clk 0:00:24.6]}
24. Rf4 {[%clk 0:01:12.3]} 24... Rae8 {[%clk 0:00:22.3]} 25. Be4 {[%clk
0:01:11.9]} 25... Qb6 {[%clk 0:00:17.4]} 26. Bxg6 {[%clk 0:00:52.2]} 26... Rg8
{[%clk 0:00:08.6]} 27. Bxh7 {[%clk 0:00:44.1]} 27... Kxh7 {[%clk 0:00:03.8]} 28.
Qf5+ {[%clk 0:00:43.8]} 28... Kh8 {[%clk 0:00:02.2]} 29. Rh4+ {[%clk 0:00:44.3]}
1-0

[Event "Early-Titled-Tuesday-Blitz-February-06-2024"]
[Site "Chess.com"]
[Date "2024.02.06"]
[Round "5"]
[White "Casper"]
[Black "PedroGil25"]
[Result "1-0"]
[WhiteElo "2520"]
[BlackElo "2395"]
[TimeControl "180+1"]
[EndTime "8:54:41 PST"]
[Termination "Casper won by resignation"]

1. Nf3 {[%clk 0:02:59.5]} 1... c5 {[%clk 0:02:56.9]} 2. e4 {[%clk 0:02:59]} 2...
e6 {[%clk 0:02:56.7]} 3. b3 {[%clk 0:02:56.8]} 3... Nc6 {[%clk 0:02:54.8]} 4.
Bb2 {[%clk 0:02:56.1]} 4... d6 {[%clk 0:02:54.1]} 5. Bb5 {[%clk 0:02:55.8]} 5...
Ne7 {[%clk 0:02:52.5]} 6. O-O {[%clk 0:02:56.1]} 6... a6 {[%clk 0:02:52.5]} 7.
Bxc6+ {[%clk 0:02:53.9]} 7... Nxc6 {[%clk 0:02:53.4]} 8. d4 {[%clk 0:02:54.1]}
8... cxd4 {[%clk 0:02:53.2]} 9. Nxd4 {[%clk 0:02:55]} 9... Bd7 {[%clk
0:02:51.9]} 10. c4 {[%clk 0:02:53.9]} 10... Rc8 {[%clk 0:02:47.1]} 11. f3 {[%clk
0:02:48.3]} 11... Nxd4 {[%clk 0:02:44.1]} 12. Bxd4 {[%clk 0:02:46.9]} 12... Bc6
{[%clk 0:02:42.5]} 13. Nc3 {[%clk 0:02:45.1]} 13... Qa5 {[%clk 0:02:35.9]} 14.
a3 {[%clk 0:02:08.3]} 14... Qh5 {[%clk 0:01:52.5]} 15. Nd5 {[%clk 0:01:58.8]}
15... Bxd5 {[%clk 0:01:41.6]} 16. exd5 {[%clk 0:01:59.7]} 16... e5 {[%clk
0:01:38.8]} 17. Bb6 {[%clk 0:01:36.9]} 17... Be7 {[%clk 0:01:38]} 18. f4 {[%clk
0:01:30.3]} 18... Qxd1 {[%clk 0:01:37.1]} 19. Raxd1 {[%clk 0:01:31.2]} 19...
exf4 {[%clk 0:00:56]} 20. Rxf4 {[%clk 0:00:53.3]} 20... O-O {[%clk 0:00:53]} 21.
Re4 {[%clk 0:00:41.4]} 21... Bf6 {[%clk 0:00:53.1]} 22. Kf2 {[%clk 0:00:30.9]}
22... Rfe8 {[%clk 0:00:52.3]} 23. Rde1 {[%clk 0:00:29.8]} 23... Rxe4 {[%clk
0:00:51.7]} 24. Rxe4 {[%clk 0:00:30.7]} 24... g6 {[%clk 0:00:47.5]} 25. b4
{[%clk 0:00:18.6]} 25... Be5 {[%clk 0:00:41.7]} 26. c5 {[%clk 0:00:18.3]} 26...
f5 {[%clk 0:00:42.3]} 27. Rxe5 {[%clk 0:00:14.5]} 27... dxe5 {[%clk 0:00:33.9]}
28. d6 {[%clk 0:00:15.2]} 28... Kf7 {[%clk 0:00:29.5]} 29. d7 {[%clk 0:00:15.3]}
1-0

[Event "Early-Titled-Tuesday-Blitz-February-06-2024"]
[Site "Chess.com"]
[Date "2024.02.06"]
[Round "5"]
[White "VomDingJetztHer"]
[Black "erugee"]
[Result "0-1"]
[WhiteElo "2476"]
[BlackElo "2343"]
[TimeControl "180+1"]
[EndTime "8:54:41 PST"]
[Termination "erugee won by resignation"]

1. d4 {[%clk 0:03:00.9]} 1... d5 {[%clk 0:02:57.1]} 2. Nf3 {[%clk 0:03:01.6]}
2... e6 {[%clk 0:02:57.2]} 3. e3 {[%clk 0:03:00.1]} 3... f5 {[%clk 0:02:57.8]}
4. c4 {[%clk 0:02:58.4]} 4... c6 {[%clk 0:02:58.5]} 5. Nbd2 {[%clk 0:02:58.2]}
5... Nf6 {[%clk 0:02:59.2]} 6. b3 {[%clk 0:02:58.8]} 6... Be7 {[%clk 0:02:59.7]}
7. Bb2 {[%clk 0:02:59.5]} 7... O-O {[%clk 0:02:59.9]} 8. Be2 {[%clk 0:03:00.2]}
8... Bd7 {[%clk 0:03:00.1]} 9. Ne5 {[%clk 0:03:00.9]} 9... Be8 {[%clk
0:03:00.4]} 10. Qc2 {[%clk 0:03:00.3]} 10... Nbd7 {[%clk 0:02:59]} 11. Ndf3
{[%clk 0:03:00.3]} 11... Ne4 {[%clk 0:02:54.6]} 12. O-O {[%clk 0:02:59.2]} 12...
Bh5 {[%clk 0:02:51.2]} 13. a4 {[%clk 0:02:59.2]} 13... Nxe5 {[%clk 0:02:50.6]}
14. Nxe5 {[%clk 0:02:58]} 14... Bxe2 {[%clk 0:02:51.3]} 15. Qxe2 {[%clk
0:02:58.8]} 15... Rc8 {[%clk 0:02:48.4]} 16. c5 {[%clk 0:02:56.4]} 16... Qe8
{[%clk 0:02:44]} 17. f4 {[%clk 0:02:56.3]} 17... g5 {[%clk 0:02:36.5]} 18. Nd3
{[%clk 0:02:45.5]} 18... Qg6 {[%clk 0:02:23.5]} 19. Kh1 {[%clk 0:02:44.7]} 19...
Qh6 {[%clk 0:02:06]} 20. Kg1 {[%clk 0:02:37.7]} 20... Rf7 {[%clk 0:02:02.8]} 21.
Nf2 {[%clk 0:02:31]} 21... gxf4 {[%clk 0:01:57.9]} 22. Nxe4 {[%clk 0:02:30.8]}
22... fxe4 {[%clk 0:01:45.1]} 23. Qg4+ {[%clk 0:02:23.7]} 23... Kh8 {[%clk
0:01:37.1]} 24. Rxf4 {[%clk 0:02:23.7]} 24... Rg8 {[%clk 0:01:12.9]} 25. Qe2
{[%clk 0:02:16.8]} 25... Rxf4 {[%clk 0:01:11.7]} 26. exf4 {[%clk 0:02:17.7]}
26... Qxf4 {[%clk 0:01:10.7]} 27. Rf1 {[%clk 0:02:18.2]} 27... Qg4 {[%clk
0:01:04]} 28. Qxg4 {[%clk 0:02:03.2]} 28... Rxg4 {[%clk 0:01:01.7]} 29. Bc1
{[%clk 0:02:03.7]} 29... Kg8 {[%clk 0:00:51.9]} 30. Be3 {[%clk 0:02:00.7]} 30...
Kg7 {[%clk 0:00:44.3]} 31. g3 {[%clk 0:01:58.2]} 31... h5 {[%clk 0:00:38.1]} 32.
Kg2 {[%clk 0:01:58.8]} 32... Rg6 {[%clk 0:00:35.8]} 33. Kh3 {[%clk 0:01:59.5]}
33... Rf6 {[%clk 0:00:33.6]} 34. Bf4 {[%clk 0:01:51.4]} 34... Kg6 {[%clk
0:00:32]} 35. Re1 {[%clk 0:01:46.8]} 35... Rf5 {[%clk 0:00:31.6]} 36. Kg2 {[%clk
0:01:44]} 36... Bf6 {[%clk 0:00:31.6]} 37. Be3 {[%clk 0:01:43.7]} 37... Rf3
{[%clk 0:00:31.7]} 38. Re2 {[%clk 0:01:43.9]} 38... Bg5 {[%clk 0:00:30.5]} 39.
Bxg5 {[%clk 0:01:40.6]} 39... Kxg5 {[%clk 0:00:30.5]} 40. Rb2 {[%clk 0:01:40.4]}
40... Rd3 {[%clk 0:00:29]} 41. b4 {[%clk 0:01:38.7]} 41... Rxd4 {[%clk
0:00:26.3]} 42. b5 {[%clk 0:01:39.6]} 42... Rxa4 {[%clk 0:00:25.9]} 43. bxc6
{[%clk 0:01:38.9]} 43... bxc6 {[%clk 0:00:26.3]} 44. Rb7 {[%clk 0:01:39.2]}
44... Rc4 {[%clk 0:00:25.6]} 45. Rxa7 {[%clk 0:01:39.3]} 45... Rc2+ {[%clk
0:00:25.7]} 46. Kh3 {[%clk 0:01:39.1]} 46... Rxc5 {[%clk 0:00:26.4]} 47. Rg7+
{[%clk 0:01:39.2]} 47... Kf6 {[%clk 0:00:25.7]} 48. Rh7 {[%clk 0:01:39.8]} 48...
e3 {[%clk 0:00:25.7]} 49. Kg2 {[%clk 0:01:39.9]} 49... d4 {[%clk 0:00:23.4]} 50.
Kf3 {[%clk 0:01:40.1]} 50... Rf5+ {[%clk 0:00:21.1]} 51. Ke2 {[%clk 0:01:38.6]}
51... Rf2+ {[%clk 0:00:20.9]} 52. Kd3 {[%clk 0:01:39.2]} 52... e2 {[%clk
0:00:20.5]} 53. Kd2 {[%clk 0:01:39.8]} 53... d3 {[%clk 0:00:19.5]} 54. Rf7+
{[%clk 0:01:22]} 54... Kxf7 {[%clk 0:00:18.8]} 0-1

[Event "Early-Titled-Tuesday-Blitz-February-06-2024"]
[Site "Chess.com"]
[Date "2024.02.06"]
[Round "5"]
[White "Massakru"]
[Black "AldokhinIvan"]
[Result "1/2-1/2"]
[WhiteElo "2333"]
[BlackElo "2616"]
[TimeControl "180+1"]
[EndTime "8:54:42 PST"]
[Termination "Game drawn by repetition"]

1. e4 {[%clk 0:03:00.9]} 1... c5 {[%clk 0:02:51.3]} 2. Nf3 {[%clk 0:02:59.9]}
2... e6 {[%clk 0:02:51.2]} 3. c3 {[%clk 0:03:00.5]} 3... Nf6 {[%clk 0:02:50.8]}
4. e5 {[%clk 0:03:00.7]} 4... Nd5 {[%clk 0:02:51.3]} 5. d4 {[%clk 0:03:01.4]}
5... cxd4 {[%clk 0:02:51.9]} 6. cxd4 {[%clk 0:03:02.3]} 6... d6 {[%clk
0:02:52.4]} 7. a3 {[%clk 0:03:02.8]} 7... Nc6 {[%clk 0:02:52.4]} 8. Bd3 {[%clk
0:03:03]} 8... g6 {[%clk 0:02:52.8]} 9. O-O {[%clk 0:02:54.6]} 9... Bg7 {[%clk
0:02:52.4]} 10. Qe2 {[%clk 0:02:52.8]} 10... O-O {[%clk 0:02:48.2]} 11. Bd2
{[%clk 0:02:47.8]} 11... Qb6 {[%clk 0:02:46.8]} 12. Nc3 {[%clk 0:02:25.6]} 12...
Nxd4 {[%clk 0:02:23.8]} 13. Nxd4 {[%clk 0:02:25.6]} 13... Qxd4 {[%clk
0:02:24.7]} 14. Nxd5 {[%clk 0:02:03.8]} 14... Qxd5 {[%clk 0:02:17.5]} 15. exd6
{[%clk 0:01:59.7]} 15... Rd8 {[%clk 0:02:12.7]} 16. Bb4 {[%clk 0:01:31]} 16...
a5 {[%clk 0:02:07.8]} 17. Bc4 {[%clk 0:01:25.6]} 17... Qc6 {[%clk 0:01:49.3]}
18. Bb5 {[%clk 0:01:14.2]} 18... Qb6 {[%clk 0:01:49.1]} 19. Bc3 {[%clk
0:00:43.4]} 19... Bxc3 {[%clk 0:01:47]} 20. bxc3 {[%clk 0:00:44]} 20... Rxd6
{[%clk 0:01:47]} 21. Rfd1 {[%clk 0:00:34.2]} 21... e5 {[%clk 0:01:17.5]} 22.
Qxe5 {[%clk 0:00:28.6]} 22... Rxd1+ {[%clk 0:01:17.4]} 23. Rxd1 {[%clk
0:00:27.5]} 23... Be6 {[%clk 0:01:18.3]} 24. Rd6 {[%clk 0:00:20.7]} 24... Qa7
{[%clk 0:00:42.2]} 25. Rxe6 {[%clk 0:00:19.5]} 25... fxe6 {[%clk 0:00:40.5]} 26.
Qxe6+ {[%clk 0:00:20.4]} 26... Kg7 {[%clk 0:00:41]} 27. Qe7+ {[%clk 0:00:20.8]}
27... Kh6 {[%clk 0:00:41.1]} 28. Qh4+ {[%clk 0:00:15.7]} 28... Kg7 {[%clk
0:00:41.1]} 29. Qe7+ {[%clk 0:00:15.6]} 29... Kh6 {[%clk 0:00:41.7]} 30. Qh4+
{[%clk 0:00:12.9]} 30... Kg7 {[%clk 0:00:42.1]} 31. Qe7+ {[%clk 0:00:13.1]}
1/2-1/2

[Event "Early-Titled-Tuesday-Blitz-February-06-2024"]
[Site "Chess.com"]
[Date "2024.02.06"]
[Round "5"]
[White "ilushka"]
[Black "Snegokhod"]
[Result "1-0"]
[WhiteElo "2431"]
[BlackElo "2557"]
[TimeControl "180+1"]
[EndTime "8:54:45 PST"]
[Termination "ilushka won by checkmate"]

1. Nf3 {[%clk 0:03:00.9]} 1... g6 {[%clk 0:02:53.3]} 2. e4 {[%clk 0:02:57.9]}
2... b6 {[%clk 0:02:51.5]} 3. d4 {[%clk 0:02:57.2]} 3... Bb7 {[%clk 0:02:51.9]}
4. Bd3 {[%clk 0:02:56.7]} 4... Bg7 {[%clk 0:02:52.4]} 5. c3 {[%clk 0:02:56.8]}
5... e6 {[%clk 0:02:53]} 6. O-O {[%clk 0:02:56.7]} 6... Ne7 {[%clk 0:02:53.5]}
7. Ne1 {[%clk 0:02:52.1]} 7... O-O {[%clk 0:02:52.6]} 8. f4 {[%clk 0:02:52.1]}
8... f5 {[%clk 0:02:51.2]} 9. Qe2 {[%clk 0:02:43.6]} 9... fxe4 {[%clk
0:02:42.7]} 10. Bxe4 {[%clk 0:02:43.6]} 10... Bxe4 {[%clk 0:02:43.1]} 11. Qxe4
{[%clk 0:02:43.7]} 11... Nbc6 {[%clk 0:02:43.7]} 12. Be3 {[%clk 0:02:40.2]}
12... Nd5 {[%clk 0:02:41.4]} 13. Nd2 {[%clk 0:02:38.3]} 13... Qf6 {[%clk
0:02:37.5]} 14. Nd3 {[%clk 0:02:36.2]} 14... Qf5 {[%clk 0:02:27.3]} 15. Rae1
{[%clk 0:02:29]} 15... Qxe4 {[%clk 0:02:21]} 16. Nxe4 {[%clk 0:02:28.9]} 16...
h6 {[%clk 0:02:19.2]} 17. Bd2 {[%clk 0:02:21.2]} 17... Rf7 {[%clk 0:02:13.6]}
18. Ne5 {[%clk 0:02:17.6]} 18... Nxe5 {[%clk 0:02:10.6]} 19. fxe5 {[%clk
0:02:17.6]} 19... Raf8 {[%clk 0:02:01.6]} 20. Rxf7 {[%clk 0:01:50]} 20... Rxf7
{[%clk 0:02:02.5]} 21. Rf1 {[%clk 0:01:49.7]} 21... Rxf1+ {[%clk 0:02:01.4]} 22.
Kxf1 {[%clk 0:01:50.6]} 22... Kf7 {[%clk 0:02:01.7]} 23. Ke2 {[%clk 0:01:50.5]}
23... Ne7 {[%clk 0:01:56]} 24. g4 {[%clk 0:01:45.8]} 24... g5 {[%clk 0:01:53]}
25. Kd3 {[%clk 0:01:38.4]} 25... Ng6 {[%clk 0:01:51.1]} 26. Kc4 {[%clk
0:01:32.7]} 26... Ke7 {[%clk 0:01:50.2]} 27. Kb5 {[%clk 0:01:27.9]} 27... a5
{[%clk 0:01:42.1]} 28. a4 {[%clk 0:01:09.5]} 28... Kd8 {[%clk 0:01:38.6]} 29.
Ka6 {[%clk 0:00:52.9]} 29... Kc8 {[%clk 0:01:38.2]} 30. c4 {[%clk 0:00:46.5]}
30... Bxe5 {[%clk 0:01:32.3]} 31. dxe5 {[%clk 0:00:45]} 31... Nxe5 {[%clk
0:01:33.2]} 32. c5 {[%clk 0:00:37.1]} 32... Nxg4 {[%clk 0:01:28.5]} 33. cxb6
{[%clk 0:00:37]} 33... cxb6 {[%clk 0:01:27.9]} 34. Kxb6 {[%clk 0:00:35.1]} 34...
Nxh2 {[%clk 0:01:26.9]} 35. Bxa5 {[%clk 0:00:33]} 35... d5 {[%clk 0:01:23.9]}
36. Nc5 {[%clk 0:00:19.3]} 36... e5 {[%clk 0:01:21.7]} 37. Kc6 {[%clk
0:00:10.5]} 37... d4 {[%clk 0:01:17.5]} 38. Bc7 {[%clk 0:00:10.2]} 38... Nf3
{[%clk 0:01:00.8]} 39. Ne4 {[%clk 0:00:09.9]} 39... d3 {[%clk 0:00:58.9]} 40.
Nd6# {[%clk 0:00:10.8]} 1-0